Cogmind - Beta 13 @@@ ROGUE MODE // 2024.04.07 @ 17:42:06 Player: Lunace Result: Destroyed by B-86 Titan with Matter Neutralizer Performance ------------- Evolutions (6) 3000 Regions Visited (15) 3000 Robots Destroyed (101) 505 Value Destroyed (3727) 3727 Prototype IDs (16) 320 Alien Tech Used (0) 0 Bonus (1463) 1463 TOTAL SCORE: 12015 Bonus ------- High Alert Combat Kills 305 Follower Combat Kills 85 Entered DSFs 500 Aligned with FarCom 300 Met Data Miner 300 Friendly Fire -27 Cogmind --------- Core Integrity 0/1150 Matter 390/400 Energy 74/100 System Corruption 4% Temperature Cool (9) Movement Core (50) Location -4/Factory Parts ------- > --- POWER (1) -------- (None) > --- PROPULSION (6) --- (None) > --- UTILITY (8) ------ Medium Matter Pod > --- WEAPON (4) ------- (None) > --- INVENTORY (5) ---- Light Antimatter Reactor Light Antimatter Reactor High-capacity Matter Pod (200) Peak State ------------ > --- POWER ------------ Reinforced Fission Core > --- PROPULSION ------- Heavy Siege Treads Heavy Siege Treads Heavy Siege Treads > --- UTILITY ---------- Advanced Cryofiber Web High-capacity Storage Unit Improved Trap Scanner Advanced Visual Processing Unit Kinecellerator Improved Weapon Cycler Hardened Medium Armor Plating Improved Force Field > --- WEAPON ----------- XL Autogun Subcomponent XL Autogun Subcomponent Heavy Mass Driver > --- INVENTORY -------- Neutrino Core Light Antimatter Reactor Heavy Siege Treads Medium Matter Pod High-capacity Matter Pod Heavy Machine Gun Tearclaws [Rating: 112] Favorites ----------- Power Light Deuterium Engine Engine Light Deuterium Engine Power Core Light Nuclear Core Propulsion Advanced Treads Treads Advanced Treads Leg Aluminum Leg Hover Unit Improved Gravmag System Utility Medium Storage Unit Device Kinecellerator Storage Medium Storage Unit Processor Improved Terrain Scan Processor Protection Layered Light Armor Plating Weapon XL Autogun Subcomponent Energy Gun Medium Laser Ballistic Gun XL Autogun Subcomponent Ballistic Cannon Heavy Mass Driver Launcher Grenade Launcher Slashing Weapon Tearclaws Build | -11 -10 -10 -10 -9 -8 -7 -7 -7 -6 -6 -6 -5 -5 -5 -4 ------- Run | Yrd Mat Min Exi Min Mat Fac Low Low Fac Low Dat Pro Fac DSF Fac Slots Evolved 12 | . . . . . 4 2 . . 2 . . . 2 . 2 Power . | . . . . . . . . . . . . . . . . Propulsion 4 | . . . . . . . . . 2 . . . . . 2 Utility 6 | . . . . . 2 2 . . . . . . 2 . . Weapon 2 | . . . . . 2 . . . . . . . . . . Parts Attached 96 | 7 10 1 1 4 8 12 . . 21 . . 3 2 11 16 Power 12 | 1 2 . . . 2 2 . . 2 . . . . 2 1 Engine 7 | 1 2 . . . . 2 . . 2 . . . . . . Core 5 | . . . . . 2 . . . . . . . . 2 1 Reactor . | . . . . . . . . . . . . . . . . Propulsion 26 | 2 1 . . 2 2 2 . . 8 . . 1 . 5 3 Treads 18 | . . . . . . 2 . . 8 . . 1 . 5 2 Leg 7 | 2 1 . . 2 2 . . . . . . . . . . Wheel . | . . . . . . . . . . . . . . . . Hover 1 | . . . . . . . . . . . . . . . 1 Flight . | . . . . . . . . . . . . . . . . Utility 30 | 2 3 . . . 3 7 . . 3 . . 1 2 2 7 Device 12 | 1 1 . . . 1 1 . . . . . . 2 2 4 Storage 7 | 1 2 . . . . 1 . . 1 . . . . . 2 Processor 5 | . . . . . 2 3 . . . . . . . . . Hackware . | . . . . . . . . . . . . . . . . Protection 6 | . . . . . . 2 . . 2 . . 1 . . 1 Artifact . | . . . . . . . . . . . . . . . . Weapon 28 | 2 4 1 1 2 1 1 . . 8 . . 1 . 2 5 Energy Gun 3 | 1 1 . . . . . . . . . . . . . 1 Energy Cannon . | . . . . . . . . . . . . . . . . Ballistic Gun 21 | 1 3 1 1 1 1 1 . . 7 . . 1 . 1 3 Ballistic Cannon 2 | . . . . . . . . . 1 . . . . 1 . Launcher 1 | . . . . 1 . . . . . . . . . . . Special Weapon . | . . . . . . . . . . . . . . . . Impact Weapon . | . . . . . . . . . . . . . . . . Slashing Weapon 1 | . . . . . . . . . . . . . . . 1 Piercing Weapon . | . . . . . . . . . . . . . . . . Special Melee Weapon . | . . . . . . . . . . . . . . . . Unidentified Prototypes 2 | . . . . . 1 . . . 1 . . . . . . Parts Lost 32 | . . 2 . 1 . 1 . . 3 . . 2 . 2 21 Power 1 | . . 1 . . . . . . . . . . . . . Propulsion 8 | . . . . 1 . . . . 1 . . . . 1 5 Utility 13 | . . . . . . 1 . . 1 . . 1 . 1 9 Weapon 10 | . . 1 . . . . . . 1 . . 1 . . 7 Highest Loss Streak 16 | . . 2 . 1 . 1 . . 2 . . 1 . 1 16 To Critical Strikes 2 | . . . . . . . . . . . . . . . 2 Average Slot Usage (%) 78 | . 100 98 85 73 68 75 76 76 83 80 80 79 79 85 62 Engine 4 | . 14 12 . . . 6 7 7 6 6 6 6 5 . . Core 1 | . . . . . 6 . . . . . . . . 4 4 Treads 11 | . . . . . . 9 15 15 26 26 26 26 23 17 11 Leg 8 | . 28 28 28 16 18 5 . . . . . . . . . Device 9 | . 11 14 14 14 11 6 7 7 3 . . . 8 18 19 Storage 8 | . 16 14 14 14 9 6 7 7 6 6 6 6 5 5 4 Processor 11 | . . . . . 13 24 23 23 13 6 6 6 5 5 4 Protection 5 | . . . . . . 5 7 7 9 13 13 13 11 8 5 Energy Gun 1 | . 18 . . . . . . . . . . . . . . Ballistic Gun 12 | . 9 28 28 16 9 7 7 7 13 20 20 19 17 20 7 Naked Turns 1 | . . . . . . . . . . . . . . . 1 Heaviest Build 120 | 14 22 20 17 17 33 38 38 38 77 77 69 71 63 78 120 Greatest Support 210 | 20 20 20 20 20 36 44 44 44 88 84 84 84 84 140 210 Greatest Overweight (x) 1 | . 1 . . 1 1 1 . . . . . . . . . Average Overweight (x) . | . . . . . . . . . . . . . . . . Largest Inventory Capacity 20 | 8 10 10 10 10 10 10 10 10 10 10 10 10 10 10 20 Average Capacity 10 | 6 9 10 10 10 10 9 10 10 10 10 10 10 10 10 16 Most Carried 10 | 3 10 10 9 10 10 10 9 9 10 10 10 10 7 10 10 Average Carried 8 | 1 6 9 8 9 8 8 8 9 8 9 10 9 7 7 7 Final Capacity 10 | 8 10 10 10 10 10 10 10 10 10 10 10 10 10 10 5 Final Carried 10 | 1 10 9 9 10 10 8 9 9 9 10 10 8 7 10 3 Class Distribution -------------------- 30% | Skirmisher 21% | Scavenger-Tank 21% | Scavenger-Skirmisher 16% | Mutant 8% | Gunner Dominant Class ---------------- Mutant | -10/Materials Mutant | -10/Mines Mutant | -10/Exiles Skirmisher | -9/Mines Scavenger-Skirmisher | -8/Materials Skirmisher | -7/Factory Gunner | -7/Lower Caves Gunner | -7/Lower Caves Skirmisher | -6/Factory Scavenger-Tank | -6/Lower Caves Scavenger-Tank | -6/Data Miner Scavenger-Tank | -5/Proximity Caves Scavenger-Skirmisher | -5/Factory Scavenger-Skirmisher | -5/DSF Scavenger-Tank | -4/Factory Resources | -11 -10 -10 -10 -9 -8 -7 -7 -7 -6 -6 -6 -5 -5 -5 -4 ----------- Run | Yrd Mat Min Exi Min Mat Fac Low Low Fac Low Dat Pro Fac DSF Fac Matter Collected 4218 | 224 221 61 . 238 755 520 180 . 709 12 . 351 77 369 501 Remotely . | . . . . . . . . . . . . . . . . Salvage Created 4123 | 16 201 . . 20 951 398 175 . 756 12 . 351 . 455 788 Parts 242 | 4 21 . . 1 56 27 9 . 32 3 . 16 . 31 42 Haulers Intercepted . | . . . . . . . . . . . . . . . . Recyclers Shooed 3 | . . . . . 1 . . . 1 . . . . . 1 Parts Field Recycled . | . . . . . . . . . . . . . . . . Retrieved Matter . | . . . . . . . . . . . . . . . . Parts Self-Destructed 26 | . . . . . . . 11 . . . . 15 . . . Prevented . | . . . . . . . . . . . . . . . . Kills | -11 -10 -10 -10 -9 -8 -7 -7 -7 -6 -6 -6 -5 -5 -5 -4 ------- Run | Yrd Mat Min Exi Min Mat Fac Low Low Fac Low Dat Pro Fac DSF Fac Combat Hostiles Destroyed 80 | . 10 . . 2 16 6 3 . 13 1 . 7 . 9 13 Melee 1 | . . . . . . . . . . . . . . . 1 Guns 76 | . 10 . . . 16 6 3 . 13 1 . 7 . 9 11 Cannons 1 | . . . . . . . . . . . . . . . 1 AOE 2 | . . . . 2 . . . . . . . . . . . Classes Destroyed 17 | 1 4 . . . 5 1 1 . 3 1 . . . . 1 Worker 6 | . . . . . 4 . . . . . . . . . 2 Builder 2 | . . . . . 1 . . . . . . . . . 1 Tunneler 1 | 1 . . . . . . . . . . . . . . . Recycler 2 | . . . . . . . . . 1 . . . . . 1 Mechanic 1 | . . . . . . . . . . . . . . . 1 Operator 1 | . 1 . . . . . . . . . . . . . . Watcher 8 | . 2 . . . 3 3 . . . . . . . . . Swarmer 26 | . 9 . . . 3 . . . 4 . . 2 . 4 4 Grunt 28 | . 1 . . 2 7 2 2 . 4 . . 4 . 3 3 Brawler 1 | . . . . . . . 1 . . . . . . . . Duelist 1 | . . . . . 1 . . . . . . . . . . Sentry 9 | . . . . . 3 3 . . 1 . . 1 . . 1 Specialist 3 | . . . . . 2 . . . . . . . . 1 . Hunter 4 | . . . . . . . . . 2 . . . . . 2 Programmer 4 | . . . . . . 1 . . 1 . . . . . 2 Heavy 3 | . . . . . . . . . 1 . . . . 1 1 Thief 1 | . . . . . . . . . . 1 . . . . . Best Kill Streak 15 | 1 6 . . 2 15 2 3 . 4 1 . 6 . 4 4 Combat Bots Only 6 | . 6 . . 2 4 2 3 . 3 1 . 6 . 4 4 Max Kills in Single Turn 3 | 1 1 . . 1 2 1 1 . 1 1 . 2 . 2 3 Gunslinging 1 | . . . . . . . . . . . . 1 . 1 1 Exploded 1 | . . . . 1 . . . . . . . . . . . Melee 1 | . . . . . . . . . . . . . . . 1 Uniques/NPCs Destroyed . | . . . . . . . . . . . . . . . . Combat | -11 -10 -10 -10 -9 -8 -7 -7 -7 -6 -6 -6 -5 -5 -5 -4 -------- Run | Yrd Mat Min Exi Min Mat Fac Low Low Fac Low Dat Pro Fac DSF Fac Hostile Shots Fired 835 | . 58 6 . 10 31 42 1 . 162 2 . 39 . 22 462 Missed 211 | . 12 1 . 2 8 12 . . 45 1 . 8 . 6 116 Damage Taken 9311 | . 399 321 . 90 334 270 17 . 1723 . . 583 . 386 5188 Core 1575 | . 111 38 . 23 48 47 . . 89 . . 19 . 29 1171 Absorbed by Shields 267 | . . . . . . . . . . . . . . . 267 Reduced by Siege Mode 708 | . . . . . . . . . . . . . . 9 699 Ignored by Resistances 526 | . . . . . . . . . . . . . . . 526 Regen/Repaired (Parts) 193 | . . . . . . 129 . . 64 . . . . . . Core Remaining (%) 83 | 100 . . . 31 91 . . 93 . . . 87 . 97 . Volleys Fired 254 | 3 37 3 . 5 45 17 5 . 43 3 . 22 . 16 55 Largest 4 | 2 2 2 . 2 1 1 1 . 4 4 . 3 . 4 3 Hottest 125 | 70 90 46 . 53 60 60 60 . 113 113 . 73 . 103 125 Shots Fired 565 | 6 74 6 . 10 45 17 5 . 157 10 1 65 . 61 108 Gun 538 | 6 74 6 . 5 45 17 5 . 151 9 1 65 . 61 93 Cannon 22 | . . . . . . . . . 6 1 . . . . 15 Launcher 5 | . . . . 5 . . . . . . . . . . . Special . | . . . . . . . . . . . . . . . . Kinetic 493 | 3 12 6 . 5 45 17 5 . 157 10 1 65 . 61 106 Thermal 65 | 3 62 . . . . . . . . . . . . . . Explosive 5 | . . . . 5 . . . . . . . . . . . Electromagnetic 2 | . . . . . . . . . . . . . . . 2 Robot Hit Streak 17 | 4 7 3 . 9 9 13 14 . 11 1 . 8 . 10 17 Robot Miss Streak 11 | 1 4 1 . 1 7 2 2 . 5 6 . 11 . 9 3 Penetration Max 1 | . . . . . . . . . . . . . . . 1 Secondary Targets 12 | . 2 . . . . . . . 4 1 . 2 . 1 2 Max Gunslinging Chain 1 | . 1 . . . . . . . 1 1 . 1 . 1 1 Shots Hit Robots 356 | 4 39 4 . 9 41 16 5 . 88 3 . 31 . 31 85 Core Hits 186 | 2 16 2 . 4 34 14 6 . 35 2 . 15 . 16 40 Critical Kills 1 | . . . . . . . . . . . . 1 . . . Critical Parts Destroyed . | . . . . . . . . . . . . . . . . Critical Strikes 6 | 1 1 . . . . . . . . . . 1 . . 3 Burn 2 | 1 1 . . . . . . . . . . . . . . Destroy 1 | . . . . . . . . . . . . 1 . . . Blast 3 | . . . . . . . . . . . . . . . 3 Melee Attacks 6 | . . . . . . . . . . . . . . . 6 Impact . | . . . . . . . . . . . . . . . . Slashing 6 | . . . . . . . . . . . . . . . 6 Piercing . | . . . . . . . . . . . . . . . . Sneak Attacks . | . . . . . . . . . . . . . . . . Combat Hostiles . | . . . . . . . . . . . . . . . . Follow-up Attacks . | . . . . . . . . . . . . . . . . Damage Inflicted 10981 | 37 438 66 . 367 2331 1062 322 . 1946 94 . 661 . 813 2844 Guns 9352 | 37 438 66 . 65 2331 1062 322 . 1910 87 . 656 . 813 1565 Cannons 924 | . . . . . . . . . 36 7 . . . . 881 Explosions 580 | . . . . 302 . . . . . . . . . . 278 Melee 81 | . . . . . . . . . . . . . . . 81 Ramming 44 | . . . . . . . . . . . . 5 . . 39 Kinetic 9868 | 13 54 66 . 65 2331 1062 322 . 1946 94 . 656 . 813 2446 Thermal 408 | 24 384 . . . . . . . . . . . . . . Explosive 580 | . . . . 302 . . . . . . . . . . 278 Electromagnetic . | . . . . . . . . . . . . . . . . Impact . | . . . . . . . . . . . . . . . . Slashing 81 | . . . . . . . . . . . . . . . 81 Piercing . | . . . . . . . . . . . . . . . . Highest Corruption 4 | . . . . . . 1 1 1 2 2 2 2 . . 4 Average Corruption 1 | . . . . . . 1 1 1 1 2 2 2 . . 1 Corruption Purged . | . . . . . . . . . . . . . . . . Corruption Blocked . | . . . . . . . . . . . . . . . . Effects 31 | . . . . . . 6 4 . 8 1 2 8 . . 2 Message Errors 8 | . . . . . . 1 2 . 2 . . 2 . . 1 Matter Fused 6 | . . . . . . . 1 . 2 . . 2 . . 1 Heat Flow Errors 2 | . . . . . . . . . 1 1 . . . . . Energy Discharges 3 | . . . . . . . 1 . 1 . 1 . . . . Data Loss (minor) 4 | . . . . . . 2 . . . . . 2 . . . Data Loss (major) 6 | . . . . . . 3 . . 1 . . 2 . . . Misfires 1 | . . . . . . . . . . . 1 . . . . Weapon Failures 1 | . . . . . . . . . 1 . . . . . . Overload Shots . | . . . . . . . . . . . . . . . . Overflow Damage 107 | . . . . . . . . . . . . . . . 107 Projectiles 107 | . . . . . . . . . . . . . . . 107 Explosions . | . . . . . . . . . . . . . . . . Melee . | . . . . . . . . . . . . . . . . Knockbacks 6 | . . . . . . . . . 1 . . . . . 5 Impact . | . . . . . . . . . . . . . . . . Kinetic 4 | . . . . . . . . . 1 . . . . . 3 Secondary 2 | . . . . . . . . . . . . . . . 2 Self-Inflicted Damage 18 | . . . . . . . . . . . . . . . 18 Shots . | . . . . . . . . . . . . . . . . Rammed 11 | . . . . . . . . . . . . 2 . . 9 Targets Rammed 11 | . . . . . . . . . . . . 2 . . 9 Kicked . | . . . . . . . . . . . . . . . . Crushed . | . . . . . . . . . . . . . . . . Highest Temperature 477 | 50 340 6 . 25 216 134 204 . 477 278 13 408 . 208 266 Average Temperature 123 | 26 95 4 . 11 83 49 106 . 206 116 7 164 . 87 41 Received Heat Transfer 1354 | . 60 . . 54 135 66 9 . 183 . . 180 . 45 622 Effects 25 | . 1 . . . . . . . 20 1 . 3 . . . Shutdowns 6 | . 1 . . . . . . . 5 . . . . . . Energy Bleed 3 | . . . . . . . . . 3 . . . . . . Interference 9 | . . . . . . . . . 6 1 . 2 . . . Matter Decay 2 | . . . . . . . . . 2 . . . . . . Short Circuit 1 | . . . . . . . . . . . . 1 . . . Damage (minor) 2 | . . . . . . . . . 2 . . . . . . Damage (major) 2 | . . . . . . . . . 2 . . . . . . Siege Activations 8 | . . . . . . . . . . . . . . 1 7 Total Turns 141 | . . . . . . . . . . . . . . 24 117 Longest Duration 53 | . . . . . . . . . . . . . . 24 53 Robots Corrupted . | . . . . . . . . . . . . . . . . Combat Hostiles . | . . . . . . . . . . . . . . . . Parts Fried . | . . . . . . . . . . . . . . . . Impact Corruptions 1 | . . . . . . . . . . . . . . . 1 Robots Melted . | . . . . . . . . . . . . . . . . Combat Hostiles . | . . . . . . . . . . . . . . . . Parts Melted 3 | . 3 . . . . . . . . . . . . . . Heat Transferred 1250 | 148 1102 . . . . . . . . . . . . . . Parts Sabotaged . | . . . . . . . . . . . . . . . . Parts Stolen 1 | . . . . . . . . . . 1 . . . . . Parts Stripped . | . . . . . . . . . . . . . . . . Power Chain Reactions . | . . . . . . . . . . . . . . . . Alert | -11 -10 -10 -10 -9 -8 -7 -7 -7 -6 -6 -6 -5 -5 -5 -4 ------- Run | Yrd Mat Min Exi Min Mat Fac Low Low Fac Low Dat Pro Fac DSF Fac Peak Influence 974 | 5 358 66 . 104 369 284 . . 241 . . . 974 861 607 Initial 969 | . 3 66 . . 40 111 . . . . . . 969 681 451 Average 186 | . 124 62 . 60 169 87 . . 79 . . . 969 767 426 Maximum Alert Level 3 | . 1 . . . 1 1 . . 1 . . . 3 3 2 Low Security (%) 69 | 100 78 100 . 100 52 88 . . 96 . . . . . . Level 1 14 | . 21 . . . 47 11 . . 3 . . . . . 21 Level 2 9 | . . . . . . . . . . . . . . 4 78 Level 3 6 | . . . . . . . . . . . . . 100 95 . Level 4 . | . . . . . . . . . . . . . . . . Level 5 . | . . . . . . . . . . . . . . . . High Security . | . . . . . . . . . . . . . . . . Max Security . | . . . . . . . . . . . . . . . . Sterilizations 1 | . . . . . . . . . . . . . . 1 . Squads Dispatched 26 | . 1 . . . 3 3 . . 8 . . . . 2 9 Investigation 4 | . . . . . 1 1 . . 1 . . . . . 1 Extermination 5 | . . . . . . 2 . . 1 . . . . . 2 Reinforcement 14 | . 1 . . . 2 . . . 3 . . . . 2 6 Assault . | . . . . . . . . . . . . . . . . Garrison 3 | . . . . . . . . . 3 . . . . . . Intercept . | . . . . . . . . . . . . . . . . Searches Triggered 2 | . . . . . . . . . . . . . . . 2 Construction Impeded 2 | . . . . . 1 . . . . . . . . . 1 Haulers Reinforced . | . . . . . . . . . . . . . . . . Active Scanning Responses . | . . . . . . . . . . . . . . . . Cargo Convoy Interrupts . | . . . . . . . . . . . . . . . . Stealth | -11 -10 -10 -10 -9 -8 -7 -7 -7 -6 -6 -6 -5 -5 -5 -4 --------- Run | Yrd Mat Min Exi Min Mat Fac Low Low Fac Low Dat Pro Fac DSF Fac Distress Signals 9 | . 1 . . . 1 1 . . . . . 3 . . 3 Communications Jammed . | . . . . . . . . . . . . . . . . Distress Signals . | . . . . . . . . . . . . . . . . Times Spotted 154 | . 18 5 . 6 18 11 4 . 26 2 . 14 . 9 41 Peak Tracking Total 22 | . 7 4 . 3 6 3 4 . 5 2 . 8 . 4 22 Tactical Retreats 10 | . 2 . . 1 . 1 . . 2 . . . . . 4 Traps | -11 -10 -10 -10 -9 -8 -7 -7 -7 -6 -6 -6 -5 -5 -5 -4 ------- Run | Yrd Mat Min Exi Min Mat Fac Low Low Fac Low Dat Pro Fac DSF Fac Traps Triggered 4 | . 1 . . . . 1 . . 2 . . . . . . Indirectly . | . . . . . . . . . . . . . . . . Trap Hack Attempts . | . . . . . . . . . . . . . . . . Triggered . | . . . . . . . . . . . . . . . . Disarmed . | . . . . . . . . . . . . . . . . Reprogrammed . | . . . . . . . . . . . . . . . . Reused . | . . . . . . . . . . . . . . . . Traps Extracted . | . . . . . . . . . . . . . . . . Installed . | . . . . . . . . . . . . . . . . Triggered 1 | . . . . . . . . . . . . 1 . . . Machines | -11 -10 -10 -10 -9 -8 -7 -7 -7 -6 -6 -6 -5 -5 -5 -4 ---------- Run | Yrd Mat Min Exi Min Mat Fac Low Low Fac Low Dat Pro Fac DSF Fac Machines Disabled 6 | . . . . 1 1 2 . . . . . . . . 2 Max in Single Turn 2 | . . . . 1 1 1 . . . . . . . . 2 Machines Repaired . | . . . . . . . . . . . . . . . . Machines Dismantled . | . . . . . . . . . . . . . . . . Machines Sabotaged . | . . . . . . . . . . . . . . . . Overloaded Fab Kills . | . . . . . . . . . . . . . . . . Hacking | -11 -10 -10 -10 -9 -8 -7 -7 -7 -6 -6 -6 -5 -5 -5 -4 --------- Run | Yrd Mat Min Exi Min Mat Fac Low Low Fac Low Dat Pro Fac DSF Fac Machines Accessed 22 | . 3 . 1 . 2 7 . . 2 . 4 . 1 . 2 Terminals 11 | . 3 . . . . 4 . . 1 . . . 1 . 2 Fabricators 1 | . . . . . . 1 . . . . . . . . . Repair Stations 3 | . . . . . . 2 . . 1 . . . . . . Recycling Units . | . . . . . . . . . . . . . . . . Scanalyzers 2 | . . . . . 2 . . . . . . . . . . Garrison Access . | . . . . . . . . . . . . . . . . Total Hacks 80 | . 11 . 5 . 12 12 . . 4 . 29 . 1 . 6 Successful 58 | . 7 . 5 . 5 7 . . 3 . 29 . 1 . 1 Failed 22 | . 4 . . . 7 5 . . 1 . . . . . 5 Catastrophic 5 | . 1 . . . . 2 . . 1 . . . . . 1 Database Lockouts . | . . . . . . . . . . . . . . . . Manual 15 | . 7 . 1 . . 1 . . 2 . . . . . 4 Terminals 26 | . 11 . . . . 6 . . 2 . . . 1 . 6 Fabricators 2 | . . . . . . 2 . . . . . . . . . Repair Stations 6 | . . . . . . 4 . . 2 . . . . . . Recycling Units . | . . . . . . . . . . . . . . . . Scanalyzers 12 | . . . . . 12 . . . . . . . . . . Garrison Access . | . . . . . . . . . . . . . . . . Terminal Hacks 43 | . 4 . 5 . . 2 . . 1 . 29 . 1 . 1 Record 16 | . . . 5 . . . . . . . 11 . . . . Part Schematic 10 | . . . . . . . . . . . 10 . . . . Robot Schematic 5 | . . . . . . . . . . . 5 . . . . Prototype ID Bank 5 | . 2 . . . . . . . . . 3 . . . . Open DSF 2 | . . . . . . . . . . . . . 1 . 1 Branch Access Points 2 | . . . . . . 1 . . 1 . . . . . . Unreport Threat 1 | . . . . . . 1 . . . . . . . . . Zone Layout 2 | . 2 . . . . . . . . . . . . . . Fabricator Hacks 1 | . . . . . . 1 . . . . . . . . . Network Status 1 | . . . . . . 1 . . . . . . . . . Repair Station Hacks 6 | . . . . . . 4 . . 2 . . . . . . Scan Component 3 | . . . . . . 2 . . 1 . . . . . . Repair 3 | . . . . . . 2 . . 1 . . . . . . Recycling Unit Hacks . | . . . . . . . . . . . . . . . . Scanalyzer 5 | . . . . . 5 . . . . . . . . . . Insert Component 3 | . . . . . 3 . . . . . . . . . . Analyze 2 | . . . . . 2 . . . . . . . . . . Garrison Access Hacks . | . . . . . . . . . . . . . . . . Unauthorized Hacks 3 | . 3 . . . . . . . . . . . . . . Terminals 3 | . 3 . . . . . . . . . . . . . . Assimilate 3 | . 3 . . . . . . . . . . . . . . Fabricators . | . . . . . . . . . . . . . . . . Repair Stations . | . . . . . . . . . . . . . . . . Recycling Units . | . . . . . . . . . . . . . . . . Scanalyzers . | . . . . . . . . . . . . . . . . Garrison Access . | . . . . . . . . . . . . . . . . Data Cores Recovered . | . . . . . . . . . . . . . . . . Used . | . . . . . . . . . . . . . . . . Hacking Detections 11 | . 2 . . . 2 4 . . 1 . . . . . 2 Full Trace Events 4 | . . . . . 2 . . . 1 . . . . . 1 Feedback Events 1 | . . . . . . . . . 1 . . . . . . Corruption 1 | . . . . . . . . . 1 . . . . . . Feedback Blocked . | . . . . . . . . . . . . . . . . Robot Schematics Acquired 5 | . . . . . . . . . . . 5 . . . . Robots Built . | . . . . . . . . . . . . . . . . Authchips . | . . . . . . . . . . . . . . . . Time . | . . . . . . . . . . . . . . . . Total Robot Build Rating . | . . . . . . . . . . . . . . . . Part Schematics Acquired 12 | . . . . . 2 . . . . . 10 . . . . Parts Built . | . . . . . . . . . . . . . . . . Authchips . | . . . . . . . . . . . . . . . . Time . | . . . . . . . . . . . . . . . . Total Part Build Rating . | . . . . . . . . . . . . . . . . Parts Repaired 3 | . . . . . . 2 . . 1 . . . . . . Time 102 | . . . . . . 64 . . 38 . . . . . . Parts Recycled . | . . . . . . . . . . . . . . . . Recycled Matter . | . . . . . . . . . . . . . . . . Retrieved Matter . | . . . . . . . . . . . . . . . . Retrieved Components . | . . . . . . . . . . . . . . . . Parts Scanalyzed 2 | . . . . . 2 . . . . . . . . . . Part Schematics Acquired 2 | . . . . . 2 . . . . . . . . . . Parts Damaged . | . . . . . . . . . . . . . . . . Bothacking | -11 -10 -10 -10 -9 -8 -7 -7 -7 -6 -6 -6 -5 -5 -5 -4 ------------ Run | Yrd Mat Min Exi Min Mat Fac Low Low Fac Low Dat Pro Fac DSF Fac Used RIF Installer . | . . . . . . . . . . . . . . . . Robots Hacked . | . . . . . . . . . . . . . . . . Non-combat . | . . . . . . . . . . . . . . . . Combat . | . . . . . . . . . . . . . . . . Robot Hacks Applied . | . . . . . . . . . . . . . . . . Relay Couplers Released . | . . . . . . . . . . . . . . . . Fabnet Peak Effective % . | . . . . . . . . . . . . . . . . Robots Rewired . | . . . . . . . . . . . . . . . . Allies Hacked . | . . . . . . . . . . . . . . . . Hacks Repelled . | . . . . . . . . . . . . . . . . Allies | -11 -10 -10 -10 -9 -8 -7 -7 -7 -6 -6 -6 -5 -5 -5 -4 -------- Run | Yrd Mat Min Exi Min Mat Fac Low Low Fac Low Dat Pro Fac DSF Fac Total Allies 3 | . . . . 3 . . . . . . . . . . . Largest Group 3 | . . . . 3 1 . . . . . . . . . . Highest-Rated Group 40 | . . . . 40 16 . . . . . . . . . . Highest-Rated Ally 16 | . . . . 16 16 . . . . . . . . . . Total Orders 4 | . . . . 4 . . . . . . . . . . . FOLLOW 2 | . . . . 2 . . . . . . . . . . . GUARD 2 | . . . . 2 . . . . . . . . . . . Ally Attacks 21 | . . . . 15 6 . . . . . . . . . . Total Damage 241 | . . . . 159 82 . . . . . . . . . . Kills 3 | . . . . 3 . . . . . . . . . . . Allies Corrupted . | . . . . . . . . . . . . . . . . Allies Melted . | . . . . . . . . . . . . . . . . Intel | -11 -10 -10 -10 -9 -8 -7 -7 -7 -6 -6 -6 -5 -5 -5 -4 ------- Run | Yrd Mat Min Exi Min Mat Fac Low Low Fac Low Dat Pro Fac DSF Fac Robot Analysis Total . | . . . . . . . . . . . . . . . . Derelict Logs Recovered 5 | . . 1 . 2 . . 1 . . 1 . . . . . Drone Launches . | . . . . . . . . . . . . . . . . Drone Recoveries . | . . . . . . . . . . . . . . . . Exploration | -11 -10 -10 -10 -9 -8 -7 -7 -7 -6 -6 -6 -5 -5 -5 -4 ------------- Run | Yrd Mat Min Exi Min Mat Fac Low Low Fac Low Dat Pro Fac DSF Fac Turns Passed 8666 | 71 580 415 292 630 1021 1435 602 120 1342 189 126 612 191 257 783 Spaces Moved 4640 | 47 350 339 212 319 359 730 408 76 580 110 81 356 121 107 445 Core 209 | 10 . . . . . . . . . . . . . . 199 Treads 2470 | . . . . . . 412 408 76 580 110 81 356 121 107 219 Legs 1934 | 37 350 339 212 319 359 318 . . . . . . . . . Wheels . | . . . . . . . . . . . . . . . . Hover 27 | . . . . . . . . . . . . . . . 27 Flight . | . . . . . . . . . . . . . . . . Fastest Speed 50 | 50 120 120 120 120 120 120 145 145 145 157 157 157 157 151 50 Average Speed 143 | 105 121 120 120 175 184 138 145 145 150 157 157 157 157 164 114 Slowest Speed 225 | 120 190 120 120 190 190 225 145 145 157 157 157 161 157 180 180 Overloaded Moves . | . . . . . . . . . . . . . . . . Propulsion Burnouts . | . . . . . . . . . . . . . . . . Robots Hopped . | . . . . . . . . . . . . . . . . Cave-ins Triggered . | . . . . . . . . . . . . . . . . Exploration Rate (%) 42 | 3 53 85 60 77 35 21 63 7 16 23 73 63 3 78 23 Regions Visited 15 Branch Regions 8 Pre-discovered Areas 4 | . . . 1 1 . . 1 . . . 1 . . . . Known Exits Taken 4 | . . . . . 1 1 . . 1 . . . 1 . . Unknown Exits Taken 10 | 1 1 1 1 1 . . 1 1 . 1 1 1 . . . Scrap Searched 7 | . . 1 . 2 . . 3 1 . . . . . . . Spaces Dug . | . . . . . . . . . . . . . . . . Terrain Destroyed 114 | . . . . 28 39 8 3 . . . . 8 . 3 25 Melee . | . . . . . . . . . . . . . . . . Projectile 70 | . . . . . 39 8 3 . . . . 8 . 3 9 AOE 44 | . . . . 28 . . . . . . . . . . 16 Terrain Rammed . | . . . . . . . . . . . . . . . . Walls Destroyed . | . . . . . . . . . . . . . . . . Machines Disabled . | . . . . . . . . . . . . . . . . Actions | -11 -10 -10 -10 -9 -8 -7 -7 -7 -6 -6 -6 -5 -5 -5 -4 --------- Run | Yrd Mat Min Exi Min Mat Fac Low Low Fac Low Dat Pro Fac DSF Fac Total 6412 | 62 439 342 251 381 720 1160 418 86 1022 124 80 383 122 176 646 Wait 1266 | . 10 . 34 50 292 363 5 11 362 10 . . . 25 104 Move 4625 | 46 349 338 211 318 358 729 407 75 579 109 80 355 120 106 445 Hop . | . . . . . . . . . . . . . . . . Pick Up 79 | 6 20 . 1 2 9 20 1 . 8 1 . . . 6 5 Fast Attach 28 | 2 2 . . 1 1 4 . . 8 . . 1 1 3 5 Attach 42 | 5 3 1 . . 4 5 . . 7 . . 2 1 4 10 Detach 4 | . 1 . . . . 1 . . . . . . . 1 1 Swap 26 | . 5 . 1 3 3 3 . . 6 . . . . 4 1 Drop 71 | . 12 . 4 2 8 18 . . 9 1 . 1 . 11 5 Fire 254 | 3 37 3 . 5 45 17 5 . 43 3 . 22 . 16 55 Melee 6 | . . . . . . . . . . . . . . . 6 Ram 9 | . . . . . . . . . . . . . . . 9 Kick . | . . . . . . . . . . . . . . . . Crush 2 | . . . . . . . . . . . . 2 . . . Escape Stasis . | . . . . . . . . . . . . . . . . Rewire . | . . . . . . . . . . . . . . . . Trap . | . . . . . . . . . . . . . . . . Miscellaneous . | . . . . . . . . . . . . . . . . Route ------- -11/Scrapyard -10/Materials (discovered 2 exits: [*Mat] / [*Min]) -10/Mines (discovered 2 exits: [*Mat] / *Exi) -10/Exiles (discovered 2 exits: [*Min x2]) -9/Mines -8/Materials -7/Factory (discovered 2 exits: *Low x2) -7/Lower Caves -7/Lower Caves -6/Factory (discovered 4 exits: *Low x2 / Ext x2) -6/Lower Caves -6/Data Miner -5/Proximity Caves -5/Factory (discovered 2 exits: Fac / DSF) -5/DSF -4/Factory (discovered 1 exit: [*Res]) History --------- Turn | Location | Event 9 | -11/Scrapyard | Discovered new exit (range 16) 72 | -11/Scrapyard | Entered Materials 296 | -10/Materials | Discovered new exit (range 12) 307 | -10/Materials | Build established: Mutant 599 | -10/Materials | Discovered new exit (range 17) 652 | -10/Materials | Entered Mines 704 | -10/Mines | Learned 8 Materials zone layouts 853 | -10/Mines | Discovered new exit (range 10) 976 | -10/Mines | Assembled infested the area 990 | -10/Mines | Met 8R-AWN 1030 | -10/Mines | Core integrity fell below 50% 1062 | -10/Mines | Discovered new exit (range 5) 1067 | -10/Mines | Entered Exiles 1087 | -10/Exiles | Discovered new exit (range 14) 1105 | -10/Exiles | Welcomed by 8R-AWN 1125 | -10/Exiles | Met EX-HEX 1165 | -10/Exiles | Met EX-BIN 1178 | -10/Exiles | Aligned with FarCom system 1179 | -10/Exiles | Given EX-Vault access code 1207 | -10/Exiles | Opened EX-Vault 1215 | -10/Exiles | Found Prototype Ballistic Gun 1241 | -10/Exiles | Warned to stay clear of 0b10 Research branches 1299 | -10/Exiles | Met EX-DEC 1303 | -10/Exiles | Learned location of Zion (-7) 1341 | -10/Exiles | Discovered new exit (range 10) 1359 | -10/Exiles | Left Exiles lab with XL Autogun Array 1359 | -10/Exiles | Entered Mines 1399 | -9/Mines | Met a Derelict bent on vengeance 1665 | -9/Mines | Build established: Skirmisher 1803 | -9/Mines | Discovered new exit (range 5) 1832 | -9/Mines | Assisted by bots powering up and referring to "LRC-V3" 1835 | -9/Mines | Learned Materials stockpile data 1989 | -9/Mines | Entered Materials 1989 | -8/Materials | Accompanied by 1 ally 1989 | -8/Materials | Evolved 4 slots: Utility x2, Weapon x2 1990 | -8/Materials | Identified exit to Factory 1991 | -8/Materials | Identified XL Autogun Array 2580 | -8/Materials | Build established: Scavenger-Skirmisher 3010 | -8/Materials | Entered Factory 3010 | -7/Factory | Evolved 2 slots: Utility x2 3596 | -7/Factory | Identified exit to Lower Caves 3846 | -7/Factory | Repaired Lgt. Deuterium Engine 3868 | -7/Factory | Build established: Skirmisher 3991 | -7/Factory | Repaired Med. Storage Unit 4445 | -7/Factory | Entered Lower Caves 4710 | -7/Lower Caves | Encountered a Warlord checkpoint 4740 | -7/Lower Caves | Build established: Gunner 4932 | -7/Lower Caves | Discovered new exit (range 6) 5047 | -7/Lower Caves | Entered another Lower Caves area 5047 | -7/Lower Caves | Discovered new exit (range 10) 5130 | -7/Lower Caves | Spotted B-75 Beast 5167 | -7/Lower Caves | Entered Factory 5167 | -6/Factory | Evolved 2 slots: Propulsion x2 5378 | -6/Factory | Repaired Adv. Treads 5466 | -6/Factory | Build established: Skirmisher 5590 | -6/Factory | Identified exit to Lower Caves 5590 | -6/Factory | Identified exit to Extension 5958 | -6/Factory | Garrison activated, responded to threat 6186 | -6/Factory | Build established: Scavenger-Tank 6509 | -6/Factory | Entered Lower Caves 6662 | -6/Lower Caves | Learned 8 Factory zone layouts 6681 | -6/Lower Caves | A Derelict revealed a hidden shortcut to meet someone special 6698 | -6/Lower Caves | Entered Data Miner 6698 | -6/Data Miner | Discovered new exit (range 6) 6722 | -6/Data Miner | Met Data Miner 6761 | -6/Data Miner | Learned location of Section 7 (-2) 6761 | -6/Data Miner | Acquired the access code to Warlord's prototype stash 6791 | -6/Data Miner | Received God Mode back door access code from Data Miner 6824 | -6/Data Miner | Entered Proximity Caves 6951 | -5/Proximity Caves | Spotter reported a threat 6987 | -5/Proximity Caves | Attracted the attention of an 0b10 checkpoint 7004 | -5/Proximity Caves | Spotter reported a threat 7037 | -5/Proximity Caves | Spotter reported a threat 7175 | -5/Proximity Caves | Spotter reported a threat 7279 | -5/Proximity Caves | Spotter reported a threat 7280 | -5/Proximity Caves | Spotter reported a threat 7332 | -5/Proximity Caves | Spotter reported a threat 7378 | -5/Proximity Caves | Spotter reported a threat 7414 | -5/Proximity Caves | Discovered new exit (range 15) 7436 | -5/Proximity Caves | Entered Factory 7436 | -5/Factory | Evolved 2 slots: Utility x2 7437 | -5/Factory | Identified exit to Factory 7626 | -5/Factory | Identified exit to DSF 7627 | -5/Factory | Entered DSF 7670 | -5/DSF | Additional patrols routed to DSF 7699 | -5/DSF | Discovered exit to Factory (range 19) 7726 | -5/DSF | Build established: Scavenger-Skirmisher 7833 | -5/DSF | Sterilization system engaged 7853 | -5/DSF | Ambient heat levels rising (+10) 7868 | -5/DSF | Ambient heat levels rising (+10) 7883 | -5/DSF | Ambient heat levels rising (+10) 7884 | -5/DSF | Entered Factory 7884 | -4/Factory | Evolved 2 slots: Propulsion x2 8017 | -4/Factory | Discovered new exit (range 19) 8134 | -4/Factory | Search patrols dispatched 8563 | -4/Factory | Core integrity fell below 50% 8591 | -4/Factory | Lost 16 parts (4n6u6w) 8659 | -4/Factory | Spotted B-86 Titan 8665 | -4/Factory | Search patrols dispatched 8665 | -4/Factory | Core integrity fell below 20% 8667 | -4/Factory | Destroyed by B-86 Titan with Matter Neutralizer Last Messages --------------- Hellfire Trap short circuited. K-01 Serf destroyed. Chain reaction triggered in Corrupted Lgt. Ion Engine. Imp. Gravmag System destroyed. Terminal disabled. Neutrino Reactor explodes. Knocked back. Hellfire Trap short circuited. Neutrino Reactor explodes. Hellfire Trap short circuited. U-05 Engineer destroyed. An explosion rips through the floor. Hpw. Shock Rifle destroyed. ALERT: Heightened foreign activity detected, multiple search patrols dispatched. Slug penetrates K-01 Serf. K-01 Serf destroyed. P-70 Sage resets S-27 Virus, system corruption cleaned. Map ----- +----------------------------------------------------+ | ?????????????????????????????????????????????????? | | ?????????????????????????????????????????????????? | | ?????????????????????????????????????????????????? | | ?????????????????????????????????????????????????? | | ?????????????????????????????????????????????????? | | ?????????????????????????????????????????????????? | | ?????????????????????????????????????????????????? | | ?????????????????????????????????????????????????? | | ?????????????????????????????????????????????????? | | ?????????????????????????????????????????????????? | | ?????????????????????????????????????????????????? | | ?????????????????????????????????????????????????? | | ?????????????????????????????????????????????????? | | ?????????????????????????????????????????????????? | | ?????????????????????????????????????????????????? | | ?????????????????????????????????????????????????? | | ?????????????????????????????????? #????????????? | | ????????????????????????#+#?????? #????????????? | | ????????????????????????# #????? #????????????? | | ????????????????????????# #????? #????????????? | | ????????????????????????# ##### #????????????? | | ??????????????#####????## # # +????????????? | | ??????????????# !!! ??## BB #????????????? | | ??????????????# !!! ## BB #????????????? | | ?????????????????!! / ! #????????????? | | ??????????????????????# @ #????????????? | | ??????????????????????# !!#????????????? | | ??????????????????????#R !!#????????????? | | ??????????????????????# #????????????? | | ??????????????????????#% #????????????? | | ??????????????????????#" !] #????????????? | | ??????????????????????#" ] +????????????? | | ??????????????????????#" ! #????????????? | | ???????????????????w??# !! ! #????????????? | | ??????????????????????# s!%| #????????????? | | ??????????????????????#ss%!##########????????????? | | ???????????????????#/##s =p################?????## | | ???????????? p/ hg gg ######T | | ??????????? # """"" """""%/ % | | ???????????? " " " " # """" """"" ##### | | ???????????????" " " #! "" """ #???# | | ???????????????" " " # h #???# | | ???????????????? " " Y# #???# | | ?????????????????" " ################???# | | ?????????????????" " #??########????????# ## | | ?????????????????" " #??# |#???????## ## | | ?????????????????? " #??# ######### # | | ?????????????????? " ??# """ + # | | ?????????????????? ??# """ ######### # | | ?????????????????? " ??/ """ #???????## ## | +----------------------------------------------------+ Best States ------------- Heat Dissipation 43 Energy Generation 19 Energy Capacity 315 Matter Stores 350 Matter Capacity 500 Sight Range 20 Terrain Scan Range 16 Terrain Scan Density 410 Base Temperature (-) 200 Armor Coverage 1200 Resistance: TH 30 Weapon Cycling 20 Evasion (%) 55 Recoil Reduction 6 Kinecelleration 30 Item Schematics ----------------- Hacking Suite | -8/Materials | Scanalyzed System Shield | -8/Materials | Scanalyzed Combat Drone Bay | -6/Data Miner | Free Lgt. Regenerative Plating | -6/Data Miner | Free Enh. Flexi-carbon Leg | -6/Data Miner | Free Prc. Energy Filter | -6/Data Miner | Free Mni. Smartbomb Launcher | -6/Data Miner | Free Impulse Thruster | -6/Data Miner | Free Point Defense Array | -6/Data Miner | Free HERF Cannon | -6/Data Miner | Free Gyrokinetic Inverter | -6/Data Miner | Free Hardcell Cannon | -6/Data Miner | Free Robot Schematics ------------------ B-60 Warrior | -6/Data Miner | Free S-27 Virus | -6/Data Miner | Free P-70 Sage | -6/Data Miner | Free Y-54 Guardian | -6/Data Miner | Free G-67 Veteran | -6/Data Miner | Free Fabricated ------------ Nothing Alien Tech Used ----------------- None Achievements -------------- None Challenges ------------ None Game ------ Seed CouplerThiefFacilitator Manual? 0 Play Time 01:30:16 Cumulative 36.0 hours Start 2024.04.07 @ 15:42:50 End 2024.04.07 @ 17:42:06 Sessions 1 Manual Loads 0 Difficulty Rogue Special Mode None Game No. 37 Rogue 32 Adventurer 5 Explorer 0 Win Type - Total 1 Types 1/0/0/0/0/0/0/0/0 Lore% 20 Gallery% 36 Achievement% 29 Wizard Run 0 Options --------- Layout 1 ASCII 0 Keyboard 0 Movement Mouse Keybinds 0 Fullscreen 1 Font 24/Terminus Map View 50x35 Zoom Use 0% Tactical HUD 0 Map Filters NONE Filters NONE Steam 1 RUN: 1e95d893-4210-4650-b091-7e8dbc67548f